bitfinex-derivatives/quotes_BTCF0:USTF0_20250313
["timestamp","ask_amount","ask_price","bid_price","bid_amount"]
[1741827206952,0.006,83521.0,83520.0,0.35116817]
[1741827208058,0.005,83521.0,83520.0,0.35116817]
[1741827208260,0.005,83521.0,83520.0,0.37129496]
[1741827208458,0.005,83521.0,83520.0,0.37169882]
[1741827208656,0.006,83521.0,83520.0,0.24813882]
[1741827208963,0.006,83521.0,83520.0,0.37165882]
[1741827209171,0.006,83521.0,83520.0,0.39393842]
[1741827210153,0.003,83521.0,83520.0,0.39393842]
[1741827210358,0.005,83521.0,83520.0,0.39393842]
[1741827210563,0.004,83521.0,83520.0,0.39393842]
[1741827211468,0.005,83521.0,83520.0,0.39393842]
[1741827211781,0.1121194,83521.0,83520.0,0.39393842]
[1741827211974,0.1131194,83521.0,83520.0,0.39393842]
[1741827213572,0.1071194,83521.0,83520.0,0.39393842]
[1741827213774,0.1111194,83521.0,83520.0,0.39393842]
[1741827214779,0.1091194,83521.0,83520.0,0.39393842]
[1741827214980,0.1111194,83521.0,83520.0,0.39393842]
[1741827215386,0.14267549,83525.0,83524.0,0.1197595]
[1741827215573,0.17830241,83530.0,83524.0,0.1197595]
[1741827215574,0.17830241,83530.0,83529.0,0.1197524]
[1741827215882,0.17830241,83530.0,83529.0,0.15246414]
[1741827216389,0.17830241,83530.0,83529.0,0.27668113]
[1741827216580,0.17830241,83530.0,83529.0,0.40000561]
[1741827217785,0.00017947,83540.0,83529.0,0.40000561]
[1741827217786,0.00017947,83540.0,83539.0,0.119738]
[1741827217985,0.00017947,83540.0,83539.0,0.27666673]
[1741827218485,0.00017947,83540.0,83539.0,0.39820873]
[1741827219784,0.00017947,83540.0,83539.0,0.39834674]
[1741827220177,0.00317947,83540.0,83539.0,0.39834631]
[1741827220683,0.00517947,83540.0,83539.0,0.39834631]
[1741827220894,0.00517947,83540.0,83539.0,0.41698547]
[1741827221885,0.00517947,83540.0,83539.0,0.39834631]
[1741827222075,0.00517947,83540.0,83539.0,0.39860232]
[1741827222279,0.00517947,83540.0,83539.0,0.61490232]
[1741827223387,0.00517947,83540.0,83539.0,0.62647149]
[1741827223688,0.00179615,83549.0,83539.0,0.50673349]
[1741827223889,0.00179615,83549.0,83548.0,0.1197251]
[1741827224091,0.00179615,83549.0,83548.0,0.27772494]
[1741827224786,0.00479615,83549.0,83548.0,0.40622494]
[1741827224984,0.00479615,83549.0,83548.0,0.44184942]
[1741827225183,0.01079615,83549.0,83548.0,0.44184942]
[1741827225687,0.009,83549.0,83548.0,0.44184942]
[1741827226583,0.012,83549.0,83548.0,0.40832958]
[1741827226892,0.012,83549.0,83548.0,0.3727051]
[1741827227387,0.012,83549.0,83548.0,0.3938556]
[1741827227585,0.012,83549.0,83548.0,0.4445424]
[1741827228484,0.012,83549.0,83548.0,0.44431746]
[1741827230890,0.012,83549.0,83548.0,0.42330538]
[1741827231780,0.012,83549.0,83548.0,0.41017297]
[1741827231984,0.012,83549.0,83548.0,0.3727051]
[1741827232583,0.012,83549.0,83548.0,0.38585751]
[1741827232894,0.012,83549.0,83548.0,0.42330752]
[1741827235096,0.012,83549.0,83548.0,0.44435574]
[1741827235486,0.012,83549.0,83548.0,0.44436237]
[1741827236091,0.012,83549.0,83548.0,0.13730657]
[1741827236292,0.2817237,83549.0,83548.0,0.05160657]
[1741827236494,0.1197481,83532.0,83531.0,0.00197521]
[1741827236697,0.1197465,83534.0,83531.0,0.04759115]
[1741827236885,0.00017958,83540.0,83538.0,0.1197386]
[1741827237086,0.00017958,83540.0,83539.0,0.13289891]
[1741827237294,0.00017958,83540.0,83539.0,0.01316091]
[1741827237595,0.00017958,83540.0,83539.0,0.13289891]
[1741827237797,0.00017958,83540.0,83539.0,0.25699891]
[1741827238506,0.11991618,83540.0,83539.0,0.13289891]
[1741827238696,0.00017958,83540.0,83539.0,0.13289891]
[1741827238892,0.00217958,83540.0,83539.0,0.21929891]
[1741827239495,0.00417958,83540.0,83539.0,0.24036415]
[1741827239696,0.00617958,83540.0,83539.0,0.24036415]
[1741827239901,0.00617958,83540.0,83539.0,0.206138]
[1741827240395,0.00817958,83540.0,83539.0,0.206138]
[1741827240995,0.00817958,83540.0,83539.0,0.329578]
[1741827241195,0.00617958,83540.0,83539.0,0.329578]
[1741827241402,0.00617958,83540.0,83539.0,0.599578]
[1741827241705,0.17830241,83548.0,83547.0,0.1197266]
[1741827242706,0.17830241,83548.0,83547.0,0.3285666]
[1741827243004,0.18330241,83548.0,83547.0,0.3285666]
[1741827243598,0.005,83548.0,83547.0,0.3285666]
[1741827244306,0.011,83548.0,83547.0,0.3295666]
[1741827247991,0.011,83548.0,83547.0,0.34208468]
[1741827248193,0.011,83548.0,83547.0,0.21864468]
[1741827248390,0.011,83548.0,83547.0,0.3648207]
[1741827249294,0.011,83548.0,83547.0,0.37906246]
[1741827250506,0.011,83548.0,83547.0,0.37902359]
[1741827251010,0.1307251,83548.0,83547.0,0.09405699]
[1741827251197,0.14311583,83548.0,83547.0,0.03797778]
[1741827252302,0.20132002,83548.0,83547.0,0.01524176]
[1741827254107,0.24492002,83548.0,83547.0,0.01524176]
[1741827255898,0.23252929,83548.0,83547.0,0.01524176]
[1741827257012,0.11280419,83548.0,83547.0,0.13496836]
[1741827257397,0.23252929,83548.0,83547.0,0.13496836]
[1741827257602,0.27392929,83548.0,83547.0,0.17010328]
[1741827257802,0.27392929,83548.0,83547.0,0.25550328]
[1741827258203,0.48849399,83548.0,83547.0,0.25550328]
[1741827259610,0.36876889,83548.0,83547.0,0.25550328]
[1741827259808,0.096,83548.0,83547.0,0.25550328]
[1741827261010,0.2157251,83548.0,83547.0,0.25550328]
[1741827262015,0.2157251,83548.0,83547.0,0.24296971]
[1741827263218,0.39457607,83548.0,83547.0,0.24296971]
[1741827263417,0.39457607,83548.0,83547.0,0.12324311]
[1741827263613,0.39457607,83548.0,83547.0,0.03784311]
[1741827263910,0.39457607,83548.0,83547.0,0.15756971]
[1741827264112,0.39457607,83548.0,83547.0,0.13496836]
[1741827264317,0.39457607,83548.0,83547.0,0.17506836]
[1741827264509,0.39457607,83548.0,83547.0,0.21466836]
[1741827265012,0.39457607,83548.0,83547.0,0.25326836]
[1741827265411,0.39457607,83548.0,83547.0,0.13354176]
[1741827265601,0.39457607,83548.0,83547.0,0.15588932]
[1741827266612,0.39457607,83548.0,83547.0,0.27561592]
[1741827266613,0.48854788,83548.0,83547.0,0.27561592]
[1741827269505,0.48854788,83548.0,83547.0,0.15588932]
[1741827269919,0.50089181,83548.0,83547.0,0.15588932]
[1741827270110,0.50089181,83548.0,83547.0,0.13354176]
[1741827270313,0.50089181,83548.0,83547.0,0.01524176]
[1741827272321,0.1197481,83532.0,83520.0,0.1197651]
[1741827272516,0.1197481,83532.0,83526.0,0.0397]
[1741827272819,0.13204463,83532.0,83509.0,0.43011099]
[1741827273027,0.1197595,83524.0,83515.0,0.041]
[1741827273322,0.1197595,83524.0,83516.0,0.0397]
[1741827273521,0.13031338,83524.0,83516.0,0.0397]
[1741827273723,0.12931338,83524.0,83516.0,0.0397]
[1741827274017,0.21201338,83524.0,83516.0,0.0397]
[1741827274220,0.09425388,83524.0,83516.0,0.0397]
[1741827274526,0.1187696,83517.0,83516.0,0.0397]
[1741827274817,0.1187696,83517.0,83516.0,0.200871]
[1741827275616,0.2019696,83517.0,83516.0,0.200871]
[1741827275820,0.0832,83517.0,83516.0,0.200871]
[1741827276210,0.0852,83517.0,83516.0,0.200871]
[1741827276408,0.2049696,83517.0,83516.0,0.200871]
[1741827277518,0.2049696,83517.0,83516.0,0.0811]
[1741827278222,0.2079696,83517.0,83516.0,0.0811]
[1741827279010,0.2079696,83517.0,83516.0,0.0397]
[1741827279216,0.1197782,83511.0,83510.0,0.0385]
[1741827280114,0.2030782,83511.0,83510.0,0.0385]
[1741827280517,0.2030782,83511.0,83507.0,0.01151005]
[1741827280518,0.1197825,83508.0,83507.0,0.00011824]
[1741827282429,0.1197825,83508.0,83507.0,0.00111824]
[1741827283622,0.2026825,83508.0,83507.0,0.00111824]
[1741827285027,0.2026825,83508.0,83507.0,0.001]
[1741827285227,0.2026825,83508.0,83500.0,0.10999805]
[1741827285228,0.1197925,83501.0,83500.0,0.10999805]
[1741827286126,0.1990925,83501.0,83500.0,0.10999805]
[1741827286326,0.21039124,83501.0,83500.0,0.10999805]
[1741827286526,0.21039124,83501.0,83500.0,0.11199805]
[1741827286828,0.21039124,83501.0,83493.0,0.7006]
[1741827287137,0.1197997,83496.0,83493.0,0.7421]
[1741827287336,0.1197997,83496.0,83494.0,0.0396]
[1741827287839,0.1197997,83496.0,83495.0,0.0511269]
[1741827288040,0.1598997,83496.0,83495.0,0.0511269]
[1741827288833,0.0401,83496.0,83495.0,0.0511269]
[1741827289038,0.120795,83501.0,83500.0,0.119794]
[1741827289236,0.001,83501.0,83499.0,0.1211]
[1741827289536,0.159894,83500.0,83499.0,0.1211]
[1741827290135,0.200894,83500.0,83499.0,0.1211]
[1741827290341,0.200894,83500.0,83499.0,0.2408954]
[1741827290538,0.159894,83500.0,83499.0,0.2408954]
[1741827290733,0.159894,83500.0,83499.0,0.1211]
[1741827293144,0.159894,83500.0,83499.0,0.2408954]
[1741827293442,0.119794,83500.0,83499.0,0.2408954]
[1741827293638,0.1197913,83502.0,83501.0,0.1197911]
[1741827293839,0.119794,83500.0,83499.0,0.1211]
[1741827294038,0.119794,83500.0,83499.0,0.0817]
[1741827294735,0.119794,83500.0,83499.0,0.0956821]
[1741827295247,0.119794,83500.0,83499.0,0.2154775]
[1741827296535,0.1197842,83507.0,83506.0,0.0598924]
[1741827296735,0.13122262,83507.0,83506.0,0.0598924]
[1741827296935,0.1197842,83507.0,83506.0,0.0738745]
[1741827297756,0.14246208,83513.0,83508.0,0.1197825]
[1741827298458,0.26223838,83513.0,83508.0,0.1197825]
[1741827298650,0.14326208,83513.0,83508.0,0.13123469]
[1741827298851,0.14246208,83513.0,83508.0,0.13123469]
[1741827299056,0.20235028,83513.0,83508.0,0.14521679]
[1741827299258,0.1197773,83512.0,83508.0,0.14521679]
[1741827299454,0.1197799,83510.0,83508.0,0.14521679]
[1741827299654,0.14246208,83513.0,83508.0,0.14521679]
[1741827299955,0.26223748,83513.0,83508.0,0.16754028]
[1741827300154,0.14334208,83513.0,83508.0,0.16754028]
[1741827300456,0.14246208,83519.0,83508.0,0.24984399]
[1741827300645,0.14246208,83519.0,83508.0,0.21006149]
[1741827300955,0.14246208,83519.0,83518.0,0.1197681]
[1741827301157,0.14246208,83519.0,83518.0,0.25551181]
[1741827301753,0.1784992,83525.0,83518.0,0.31551181]
[1741827301956,0.1784992,83525.0,83524.0,0.1197595]
[1741827302353,0.1784992,83525.0,83524.0,0.13197132]
[1741827302658,0.1784992,83525.0,83524.0,0.48953756]
[1741827302859,0.21462117,83530.0,83529.0,0.1197524]
[1741827303054,0.21462117,83530.0,83529.0,0.25540422]
[1741827303544,0.21462117,83530.0,83529.0,0.26938632]
[1741827304151,0.22162117,83530.0,83529.0,0.26938632]
[1741827304347,0.22162117,83530.0,83529.0,0.26931883]
[1741827304646,0.007,83530.0,83529.0,0.52931883]
[1741827305051,0.007,83530.0,83529.0,0.26931883]
[1741827305258,0.007,83530.0,83529.0,0.29165311]
[1741827306156,0.00017958,83538.0,83529.0,0.29165311]
[1741827306157,0.00017958,83538.0,83537.0,0.1197409]
[1741827306363,0.00017958,83538.0,83537.0,0.13188523]
[1741827306546,0.00017958,83538.0,83537.0,0.17188523]
[1741827306752,0.00017958,83538.0,83537.0,0.20820161]
[1741827307458,0.01417958,83538.0,83537.0,0.20820161]
[1741827307849,0.00088,83551.0,83537.0,0.08846071]
[1741827308051,0.0598584,83554.0,83553.0,0.0598585]
[1741827308252,0.0817,83560.0,83553.0,0.1832585]
[1741827308452,0.1795735,83556.0,83555.0,0.1197122]
[1741827308856,0.059857,83556.0,83555.0,0.1197122]
[1741827309162,0.04,83558.0,83557.0,0.1197122]
[1741827309962,0.04,83558.0,83557.0,0.13092269]
[1741827310155,0.00017958,83564.0,83557.0,0.01121049]
[1741827310458,0.11988178,83564.0,83563.0,0.1197036]
[1741827310651,0.11988178,83564.0,83563.0,0.2431036]
[1741827310652,0.00017958,83564.0,83563.0,0.2431036]
[1741827310852,0.14837129,83580.0,83563.0,0.2431036]
[1741827310853,0.1196843,83577.0,83563.0,0.36502008]
[1741827311169,0.1196843,83577.0,83576.0,0.119685]
[1741827311662,0.1602843,83577.0,83576.0,0.119685]
[1741827311846,0.0406,83577.0,83576.0,0.119685]
[1741827312051,0.0406,83577.0,83576.0,0.13140651]
[1741827312251,0.0406,83577.0,83576.0,0.17250651]
[1741827312661,0.0406,83582.0,83581.0,0.1196779]
[1741827313565,0.0406,83582.0,83581.0,0.1591779]
[1741827314256,0.0446,83582.0,83581.0,0.1601779]
[1741827314459,0.1642764,83582.0,83581.0,0.1601779]
[1741827314960,0.12336,83608.0,83581.0,0.0405]
[1741827315160,0.1196721,83586.0,83585.0,0.059836]
[1741827315359,0.1196721,83586.0,83585.0,0.263796]
[1741827316062,0.1583721,83586.0,83585.0,0.263796]
[1741827316365,0.0387,83586.0,83585.0,0.263796]
[1741827316765,0.2575967,83593.0,83592.0,0.1196621]
[1741827316960,0.2575967,83593.0,83592.0,0.2430221]
[1741827317166,0.1379312,83593.0,83592.0,0.2430221]
[1741827317567,0.00017948,83594.0,83593.0,0.1196607]
[1741827317758,0.00017948,83594.0,83593.0,0.1595607]
[1741827318061,0.20013878,83594.0,83593.0,0.1595607]
[1741827319463,0.16073878,83594.0,83593.0,0.1595607]
[1741827320861,0.16073878,83594.0,83593.0,0.1605607]
[1741827321069,0.16273878,83594.0,83593.0,0.1605607]
[1741827321567,0.04307948,83594.0,83593.0,0.1605607]
[1741827321960,0.16273878,83594.0,83593.0,0.1605607]
[1741827323470,0.16273878,83594.0,83593.0,0.2838807]
[1741827324168,0.16273878,83594.0,83593.0,0.1605607]
[1741827324370,0.16273878,83594.0,83593.0,0.2838807]
[1741827324968,0.04307948,83594.0,83593.0,0.2838807]
[1741827325466,0.16273878,83594.0,83593.0,0.2838807]
[1741827328571,0.04307948,83594.0,83593.0,0.2838807]
[1741827329072,0.16273878,83594.0,83593.0,0.29756932]
[1741827329471,0.04307948,83594.0,83593.0,0.29756932]
[1741827329972,0.04307948,83594.0,83593.0,0.33966932]
[1741827333166,0.04307948,83594.0,83593.0,0.35172158]
[1741827333567,0.16273878,83594.0,83593.0,0.39462158]
[1741827333966,0.16273878,83594.0,83593.0,0.39461771]
[1741827334167,0.04307948,83594.0,83593.0,0.39461771]
[1741827334776,0.16273878,83594.0,83593.0,0.39461771]
[1741827334972,0.00217948,83594.0,83593.0,0.39461771]
[1741827335979,0.04467948,83594.0,83593.0,0.39461771]
[1741827336175,0.17578237,83594.0,83593.0,0.02677701]
[1741827336376,0.1196707,83586.0,83585.0,0.00017948]
[1741827336581,0.1196681,83588.0,83585.0,0.00017948]
[1741827336770,0.14552307,83594.0,83585.0,0.00017948]
[1741827336774,0.04687948,83594.0,83585.0,0.05228675]
[1741827336970,0.04687948,83594.0,83593.0,0.1196607]
[1741827337180,0.04687948,83594.0,83593.0,0.13110622]
[1741827337371,0.16653878,83594.0,83593.0,0.13110622]
[1741827337566,0.04487948,83594.0,83593.0,0.1433182]
[1741827337766,0.16453878,83594.0,83593.0,0.2266182]
[1741827338076,0.16453878,83594.0,83593.0,0.2266189]
[1741827338583,0.17153878,83594.0,83593.0,0.13649268]
[1741827338765,0.17153878,83594.0,83593.0,0.13749268]
[1741827338766,0.17353878,83594.0,83593.0,0.13749268]
[1741827339972,0.17353878,83594.0,83593.0,0.1373946]
[1741827341477,0.18538083,83594.0,83593.0,0.1373946]
[1741827341875,0.18536425,83594.0,83593.0,0.13748424]
[1741827342488,0.18536425,83594.0,83593.0,0.01420424]
[1741827347674,0.18536425,83594.0,83593.0,0.002]
[1741827348380,0.18536425,83594.0,83585.0,0.00017948]
[1741827348381,0.1196707,83586.0,83585.0,0.00017948]
[1741827348582,0.13149617,83586.0,83585.0,0.0122745]
[1741827348784,0.13149617,83586.0,83585.0,0.01227401]
[1741827348785,0.13147872,83586.0,83585.0,0.01227401]
[1741827348983,0.13147872,83586.0,83585.0,0.00017948]
[1741827349180,0.13147872,83586.0,83585.0,0.01382577]
[1741827350791,0.13847872,83586.0,83585.0,0.01482577]
[1741827351089,0.14247872,83586.0,83585.0,0.01482577]
[1741827351285,0.14244968,83586.0,83585.0,0.01482577]
[1741827352986,0.15428358,83586.0,83585.0,0.01482577]
[1741827353585,0.19528358,83586.0,83585.0,0.01482577]
[1741827356189,0.19528358,83586.0,83566.0,0.21505549]
[1741827356190,0.1196979,83567.0,83566.0,0.21505549]
[1741827356780,0.13155819,83567.0,83566.0,0.21505549]
[1741827357181,0.1949979,83567.0,83566.0,0.21505549]
[1741827357786,0.1949979,83567.0,83558.0,0.03837948]
[1741827357787,0.1197079,83560.0,83559.0,0.21505549]
[1741827358198,0.1187079,83560.0,83559.0,0.21505549]
[1741827358597,0.1558079,83560.0,83559.0,0.37296489]
[1741827358797,0.1558079,83560.0,83559.0,0.25325549]
[1741827359007,0.1558079,83560.0,83559.0,0.25725549]
[1741827359294,0.1558079,83560.0,83559.0,0.26125549]
[1741827359497,0.1937079,83560.0,83559.0,0.26125549]
[1741827359686,0.1937079,83560.0,83559.0,0.25325549]
[1741827359890,0.2017079,83560.0,83559.0,0.25325549]
[1741827360102,0.2017079,83560.0,83559.0,0.29295549]
[1741827360983,0.1967079,83560.0,83559.0,0.29295549]
[1741827361288,0.1588079,83560.0,83559.0,0.41266489]
[1741827361489,0.0421,83560.0,83559.0,0.1976094]
[1741827361789,0.1588079,83560.0,83559.0,0.0779]
[1741827364503,0.1197079,83560.0,83559.0,0.1976094]
[1741827364797,0.1197079,83560.0,83559.0,0.0779]
[1741827365795,0.26199365,83564.0,83559.0,0.1976094]
[1741827365994,0.1197051,83562.0,83559.0,0.1976094]
[1741827366198,0.1197079,83560.0,83559.0,0.1976094]
[1741827368002,0.14229115,83564.0,83563.0,0.1197036]
[1741827368196,0.1197022,83564.0,83563.0,0.1197036]
[1741827369194,0.1197022,83564.0,83563.0,0.1959036]
[1741827369590,0.0598498,83566.0,83565.0,0.1197008]
[1741827369802,0.14229115,83567.0,83566.0,0.1196994]
[1741827370011,0.14229115,83567.0,83566.0,0.2077052]
[1741827370503,0.14229115,83567.0,83566.0,0.22106893]
[1741827371006,0.26198905,83567.0,83566.0,0.22106893]
[1741827372790,0.1196979,83567.0,83566.0,0.22106893]
[1741827373900,0.1196979,83567.0,83566.0,0.10136953]
[1741827374100,0.1196979,83567.0,83566.0,0.22460953]
[1741827374305,0.1196979,83567.0,83566.0,0.34430893]
[1741827376521,0.0377,83568.0,83567.0,0.1196979]
[1741827376811,0.1573965,83568.0,83567.0,0.1950979]
[1741827377002,0.0377,83568.0,83567.0,0.1950979]
[1741827377199,0.0377,83568.0,83567.0,0.20846163]
[1741827377404,0.1573965,83568.0,83567.0,0.20846163]
[1741827377604,0.1196941,83570.0,83569.0,0.1196951]
[1741827378511,0.1196941,83570.0,83569.0,0.13305883]
[1741827379496,0.2170351,83574.0,83573.0,0.1196893]
[1741827380100,0.2170351,83574.0,83573.0,0.13305303]
[1741827380501,0.2170351,83574.0,83573.0,0.01336373]
[1741827381805,0.2560351,83574.0,83573.0,0.01336373]
[1741827385414,0.2560351,83574.0,83573.0,0.05026373]
[1741827387803,0.17771551,83575.0,83574.0,0.1196879]
[1741827388012,0.17771551,83575.0,83574.0,0.17064553]
[1741827388511,0.17771551,83575.0,83574.0,0.18400926]
[1741827388711,0.17771551,83575.0,83574.0,0.18400708]
[1741827389316,0.17771551,83575.0,83574.0,0.20629193]
[1741827390006,0.00017948,83575.0,83574.0,0.20629193]
[1741827390922,0.11986598,83575.0,83574.0,0.24489193]
[1741827391812,0.00017948,83575.0,83574.0,0.24489193]
[1741827393319,0.00017948,83575.0,83574.0,0.23273648]
[1741827393525,0.00017948,83575.0,83574.0,0.1970879]
[1741827394215,0.00017948,83575.0,83574.0,0.20956302]
[1741827394720,0.00017948,83575.0,83574.0,0.24638678]
[1741827398119,0.07467948,83575.0,83574.0,0.24638678]
[1741827398519,0.19436598,83575.0,83574.0,0.24638678]
[1741827398925,0.19436598,83575.0,83574.0,0.36954678]
[1741827400617,0.19436598,83575.0,83574.0,0.35707166]
[1741827400824,0.19436598,83575.0,83574.0,0.3694367]
[1741827401829,0.07467948,83575.0,83574.0,0.2462767]
[1741827402028,0.07467948,83575.0,83574.0,0.3694367]
[1741827404616,0.07467948,83575.0,83574.0,0.34677592]
[1741827405021,0.19436598,83575.0,83574.0,0.34677592]
[1741827405926,0.03827948,83575.0,83574.0,0.34677592]
[1741827406128,0.00017948,83575.0,83574.0,0.60677592]
[1741827406327,0.1795059,83588.0,83587.0,0.1196661]
[1741827406548,0.1795059,83588.0,83587.0,0.01236504]
[1741827406735,0.1795059,83588.0,83587.0,0.06603579]
[1741827406932,0.1795059,83588.0,83587.0,0.05367075]
[1741827407530,0.2539059,83588.0,83587.0,0.05367075]
[1741827407930,0.1342339,83588.0,83587.0,0.17334005]
[1741827408137,0.1342339,83588.0,83587.0,0.21314005]
[1741827411328,0.1342339,83588.0,83587.0,0.23537598]
[1741827411638,0.1342339,83588.0,83587.0,0.24784715]
[1741827412139,0.0744,83588.0,83587.0,0.24784715]
[1741827413038,0.1940678,83588.0,83587.0,0.24784715]
[1741827414338,0.0744,83588.0,83587.0,0.24784715]
[1741827414633,0.1940678,83588.0,83587.0,0.24778612]
[1741827414938,0.21462117,83593.0,83592.0,0.1196621]
[1741827415131,0.21462117,83593.0,83592.0,0.13207224]
[1741827415742,0.21462117,83593.0,83592.0,0.20907224]
[1741827416137,0.21462117,83593.0,83592.0,0.24517892]
[1741827416330,0.25252117,83593.0,83592.0,0.24517892]
[1741827416635,0.0379,83593.0,83592.0,0.24531364]
[1741827416829,0.1575607,83593.0,83592.0,0.24531364]
[1741827417031,0.1959607,83593.0,83592.0,0.12565154]
[1741827417235,0.1959607,83593.0,83592.0,0.14582975]
[1741827417535,0.1959607,83593.0,83592.0,0.26549185]
[1741827417932,0.1959607,83593.0,83592.0,0.14582975]
[1741827418141,0.1959607,83593.0,83592.0,0.03610668]
[1741827418433,0.119675,83583.0,83582.0,0.12312]
[1741827418638,0.119675,83583.0,83582.0,0.13577375]
[1741827418934,0.0739,83584.0,83583.0,0.119675]
[1741827419137,0.0739,83584.0,83583.0,0.20732875]
[1741827419639,0.1935736,83584.0,83583.0,0.20732875]
[1741827420141,0.0739,83584.0,83583.0,0.20732875]
[1741827420732,0.1935736,83584.0,83583.0,0.20732875]
[1741827420932,0.1935736,83584.0,83583.0,0.08765375]
[1741827421829,0.1935736,83584.0,83583.0,0.20699186]
[1741827422128,0.1935736,83584.0,83583.0,0.08731686]
[1741827422338,0.1935736,83584.0,83583.0,0.04911686]
[1741827423136,0.1935736,83584.0,83583.0,0.08571686]
[1741827423338,0.20501354,83584.0,83583.0,0.08571686]
[1741827424137,0.20501354,83584.0,83583.0,0.0734]
[1741827425043,0.20501354,83584.0,83583.0,0.0368]
[1741827425338,0.1196793,83580.0,83579.0,0.00017948]
[1741827425942,0.1196793,83580.0,83579.0,0.13201333]
[1741827426237,0.1923793,83580.0,83579.0,0.01233263]
[1741827426444,0.1923793,83580.0,83579.0,0.00017948]
[1741827432238,0.1196994,83566.0,83549.0,0.1197227]
[1741827432437,0.1096,83565.0,83560.0,0.0366]
[1741827432645,0.1197065,83561.0,83560.0,0.0366]
[1741827432950,0.119718,83553.0,83552.0,0.0379]
[1741827433243,0.1197194,83552.0,83551.0,0.21505549]
[1741827433443,0.1548194,83552.0,83551.0,0.21505549]
[1741827433634,0.1197237,83549.0,83544.0,0.00017948]
[1741827433837,0.1197294,83545.0,83544.0,0.00017948]
[1741827434638,0.1561294,83545.0,83544.0,0.03787948]
[1741827435251,0.1197509,83530.0,83529.0,0.00179578]
[1741827435552,0.1197509,83530.0,83529.0,0.03889578]
[1741827435741,0.0364,83531.0,83529.0,0.03889578]
[1741827435941,0.0598693,83539.0,83537.0,0.1197405]
[1741827436249,0.0598649,83545.0,83538.0,0.0753]
[1741827436451,0.119738,83539.0,83538.0,0.0753]
[1741827436950,0.0353,83544.0,83530.0,0.00017948]
[1741827437147,0.1197495,83531.0,83530.0,0.00017948]
[1741827438239,0.1554495,83531.0,83530.0,0.00017948]
[1741827438840,0.0357,83531.0,83530.0,0.11993038]
[1741827439453,0.1554495,83531.0,83530.0,0.11993038]
[1741827440550,0.1554495,83531.0,83530.0,0.00017948]
[1741827441152,0.1474495,83531.0,83530.0,0.00017948]
[1741827443450,0.14847257,83529.0,83503.0,0.075]
[1741827443644,0.1197575,83526.0,83522.0,0.1197618]
[1741827443847,0.0598835,83519.0,83509.0,0.0353]
[1741827444083,0.1197753,83513.0,83512.0,0.0378]
[1741827444956,0.13122903,83513.0,83512.0,0.0378]
[1741827446660,0.16802903,83513.0,83512.0,0.0378]
[1741827450864,0.20612903,83513.0,83512.0,0.0378]
[1741827451060,0.059891,83509.0,83504.0,0.00017959]
[1741827451251,0.1197839,83507.0,83504.0,0.00017959]
[1741827451759,0.1932839,83507.0,83504.0,0.00017959]
[1741827454555,0.1551839,83507.0,83504.0,0.00017959]
[1741827458864,0.14185203,83529.0,83504.0,0.00017959]
[1741827459084,0.0598907,83509.0,83504.0,0.00017959]
[1741827459260,0.1197839,83507.0,83506.0,0.11993773]
[1741827459564,0.1197839,83507.0,83506.0,0.00015303]
[1741827460969,0.1197839,83507.0,83506.0,0.11993843]
[1741827461869,0.1197839,83507.0,83506.0,0.13200862]
[1741827462054,0.1197839,83507.0,83506.0,0.13200861]
[1741827463764,0.1197839,83507.0,83506.0,0.14530587]
[1741827464773,0.0598861,83516.0,83515.0,0.1197724]
[1741827465165,0.0598861,83516.0,83515.0,0.13187756]
[1741827465659,0.0598861,83516.0,83515.0,0.21707328]
[1741827465865,0.0371,83523.0,83520.0,0.1197653]
[1741827465866,0.11994339,83521.0,83520.0,0.1197653]
[1741827466375,0.11994339,83521.0,83520.0,0.13181959]
[1741827466585,0.00017959,83521.0,83520.0,0.20431959]
[1741827468564,0.0017969,83530.0,83529.0,0.1197524]
[1741827468759,0.0017969,83530.0,83529.0,0.25488669]
[1741827469368,0.0017969,83530.0,83529.0,0.32776117]
[1741827469567,0.0017969,83530.0,83529.0,0.3157324]
[1741827471179,0.1215478,83530.0,83529.0,0.3157324]
[1741827471379,0.1197509,83530.0,83529.0,0.3157324]
[1741827472373,0.1197509,83530.0,83529.0,0.19598]
[1741827473268,0.1197498,83532.0,83531.0,0.1197481]
[1741827473467,0.1197488,83534.0,83533.0,0.1197433]
[1741827473874,0.1796144,83536.0,83535.0,0.1197438]
[1741827474373,0.11992079,83538.0,83537.0,0.1197409]
[1741827474682,0.1197438,83535.0,83534.0,0.1557436]
[1741827474882,0.1197438,83535.0,83534.0,0.1197436]
[1741827476371,0.00017959,83538.0,83531.0,0.0354]
[1741827476580,0.1197481,83533.0,83532.0,0.1197479]
[1741827478881,0.1531481,83533.0,83532.0,0.1197479]
[1741827479883,0.1197481,83533.0,83532.0,0.1197479]
[1741827480784,0.11991969,83538.0,83537.0,0.1197409]
[1741827481086,0.1197438,83536.0,83535.0,0.1197433]
[1741827481287,0.1197481,83532.0,83531.0,0.04730626]
[1741827481482,0.1197481,83532.0,83531.0,0.16705576]
[1741827483488,0.1197481,83532.0,83531.0,0.0354]
[1741827483686,0.1556481,83532.0,83531.0,0.1551495]
[1741827483986,0.1556481,83532.0,83531.0,0.2781495]
[1741827484685,0.1556481,83532.0,83531.0,0.28971455]
[1741827486788,0.1197595,83524.0,83514.0,0.0598865]
[1741827486974,0.1197595,83524.0,83507.0,0.00179628]
[1741827487178,0.1197595,83524.0,83519.0,0.123]
[1741827487576,0.2251595,83524.0,83519.0,0.123]
[1741827487997,0.2251595,83524.0,83511.0,0.123]
[1741827488182,0.2251595,83524.0,83507.0,0.00179628]
[1741827488183,0.1197811,83509.0,83508.0,0.123]
[1741827488689,0.13163292,83509.0,83508.0,0.123]
[1741827488884,0.1197825,83508.0,83507.0,0.00179628]
[1741827489108,0.1925825,83508.0,83507.0,0.00179628]
[1741827493788,0.1925825,83508.0,83507.0,0.03569628]
[1741827494395,0.1925825,83508.0,83507.0,0.00179628]
[1741827494590,0.1197839,83507.0,83506.0,0.00015303]
[1741827495198,0.1886839,83507.0,83506.0,0.00015303]
[1741827495396,0.18881072,83507.0,83506.0,1e-08]
[1741827498200,0.1886839,83507.0,83493.0,0.823]
[1741827498403,0.119794,83500.0,83493.0,0.8236]
[1741827498606,0.11988757,83500.0,83493.0,0.8236]
[1741827498805,0.11988757,83500.0,83496.0,0.0365]
[1741827499405,0.11988757,83500.0,83493.0,0.61107826]
[1741827499406,0.1197997,83496.0,83493.0,0.61107826]
[1741827499701,0.1198026,83494.0,83493.0,0.61047826]
[1741827499906,0.11995594,83494.0,83493.0,0.61047826]
[1741827500099,0.19165594,83494.0,83493.0,0.61047826]
[1741827507904,0.1915026,83494.0,83493.0,0.61047826]
[1741827509002,0.19165385,83494.0,83493.0,0.61047826]
[1741827510516,0.15535385,83494.0,83493.0,0.61047826]
[1741827511104,0.15535385,83494.0,83493.0,0.67747826]
[1741827512408,0.11995385,83494.0,83493.0,0.67747826]